bitfinex-derivatives/quotes_ETHF0:USTF0_20251028
["timestamp","ask_amount","ask_price","bid_price","bid_amount"]
[1761682772363,3.2078,3987.2,3986.0,4.451]
[1761682772364,3.2078,3987.8,3986.3,3.4943]
[1761682772562,0.00182442,3987.8,3986.9,3.2078]
[1761682772761,3.2078,3989.5,3987.4,3.4943]
[1761682773161,3.2078,3988.9,3987.9,3.4943]
[1761682773369,3.2078,3988.9,3984.9,11.29314]
[1761682773370,3.2078,3988.0,3986.4,3.2078]
[1761682773667,3.2078,3988.0,3986.3,3.49646983]
[1761682773668,3.2078,3987.0,3986.3,0.00216983]
[1761682773861,3.21032353,3988.0,3986.3,3.49646983]
[1761682774060,3.2078,3987.6,3986.3,0.00216983]
[1761682774265,1.6852,3986.5,3986.3,0.00216983]
[1761682774465,3.2078,3986.6,3986.3,0.00216983]
[1761682774772,3.2078,3987.5,3986.3,3.49646983]
[1761682774971,0.00252353,3988.0,3987.2,3.4943]
[1761682775169,0.00252353,3988.0,3987.4,3.4943]
[1761682775469,0.00252353,3988.0,3985.9,3.4943]
[1761682775470,1.6852,3987.4,3985.9,3.4943]
[1761682775668,1.6852,3986.6,3985.5,4.5812]
[1761682775966,3.2078,3986.7,3985.5,3.4943]
[1761682776266,0.00252353,3988.0,3984.4,1.3734]
[1761682776267,1.6852,3985.8,3984.4,1.3734]
[1761682776467,5.11765555,3985.8,3984.5,3.4943]
[1761682776662,3.2078,3984.7,3983.7,3.4943]
[1761682776863,0.00258346,3984.7,3984.6,3.4943]
[1761682777071,1.6852,3984.6,3984.5,0.00211727]
[1761682777369,1.6852,3984.6,3983.3,3.4943]
[1761682777674,3.2078,3984.0,3983.3,3.4943]
[1761682777968,0.00258346,3984.7,3984.0,4.8677]
[1761682778270,0.00258346,3984.7,3981.9,3.2078]
[1761682778271,1.6852,3984.3,3981.9,3.2078]
[1761682778460,1.6852,3984.3,3980.2,0.02400934]
[1761682778461,1.6831,3981.9,3980.2,0.02400934]
[1761682778666,3.2078,3980.9,3980.2,0.02400934]
[1761682778964,1.2309,3984.0,3980.4,3.4943]
[1761682778965,3.2078,3982.5,3980.4,3.4943]
[1761682779163,4.547,3983.3,3980.6,3.4943]
[1761682779164,3.2078,3981.5,3980.6,3.4943]
[1761682779363,1.2309,3984.0,3980.6,3.4943]
[1761682779364,3.2078,3981.8,3980.6,3.4943]
[1761682779568,0.00214792,3982.5,3981.0,4.7246]
[1761682779772,0.00214792,3982.5,3981.6,3.3838]
[1761682779973,3.2078,3982.1,3981.8,3.3838]
[1761682780161,3.2078,3982.1,3981.1,3.33901225]
[1761682780365,3.2078,3981.2,3981.1,3.3838]
[1761682780571,1.6929,3982.4,3981.0,1.3408]
[1761682780761,1.6929,3981.2,3980.2,0.02400934]
[1761682780961,1.6929,3980.4,3980.2,0.02400934]
[1761682781161,4.562,3981.6,3980.2,3.40780934]
[1761682781162,3.2078,3981.6,3980.2,3.40780934]
[1761682781370,3.2078,3981.6,3980.3,3.3838]
[1761682781570,1.69504792,3982.5,3980.3,3.3838]
[1761682781571,3.2078,3982.0,3980.7,3.3838]
[1761682781862,1.6929,3980.8,3980.7,0.00192159]
[1761682782063,1.6929,3980.8,3980.2,0.02400934]
[1761682782280,1.691,3980.2,3976.2,3.2078]
[1761682782582,1.691,3980.2,3975.0,1.3408]
[1761682782583,3.18266048,3977.8,3975.3,3.41863235]
[1761682782773,3.2078,3976.9,3976.1,3.3838]
[1761682782971,0.00284131,3976.9,3976.3,3.3838]
[1761682783171,3.2078,3978.6,3977.6,1.3408]
[1761682783376,2.72102666,3978.6,3977.8,3.3838]
[1761682783573,2.57481977,3978.6,3977.8,3.3838]
[1761682783872,3.2078,3978.2,3977.6,1.3408]
[1761682784072,3.02127724,3977.7,3977.0,3.3838]
[1761682784270,3.2078,3978.1,3977.0,3.3838]
[1761682784466,3.2078,3978.0,3976.6,3.3838]
[1761682784775,3.2078,3978.0,3976.3,4.621]
[1761682784776,0.00200577,3978.2,3977.7,3.3838]
[1761682784966,3.2078,3978.7,3977.9,3.83632]
[1761682785174,3.16545942,3978.7,3977.9,3.2078]
[1761682785373,3.2078,3979.1,3978.0,7.8378]
[1761682785569,3.2078,3978.1,3976.0,1.3408]
[1761682785878,3.2078,3977.2,3976.3,3.2078]
[1761682786173,3.2078,3977.2,3976.0,1.3408]
[1761682786174,0.00244829,3977.2,3976.1,3.21014602]
[1761682786579,0.00244829,3977.2,3976.2,4.655]
[1761682786772,0.00244829,3977.2,3976.1,3.21014602]
[1761682787073,1.0021,3976.8,3976.1,0.00234602]
[1761682787269,4.2099,3976.2,3975.3,0.03483235]
[1761682787465,3.2078,3976.2,3975.3,3.41863235]
[1761682787671,0.00244829,3977.2,3975.8,3.2078]
[1761682787870,0.00244829,3977.2,3976.6,3.2078]
[1761682788064,0.00244829,3977.2,3976.8,3.3838]
[1761682788268,4.829e-05,3977.2,3977.1,3.3838]
[1761682788470,4.829e-05,3977.2,3977.0,3.2078]
[1761682788471,3.2078,3979.3,3977.7,3.3838]
[1761682788669,15.07,3981.6,3977.2,4.663]
[1761682788670,1.0046,3978.3,3977.2,4.663]
[1761682788877,1.0046,3977.2,3976.8,0.00210459]
[1761682789081,4.2124,3977.2,3976.0,4.663]
[1761682789271,3.2078,3977.2,3976.1,3.3838]
[1761682789574,1.96970873,3980.3,3977.4,3.3838]
[1761682789575,1.0046,3978.8,3977.4,3.3838]
[1761682789766,3.2078,3978.9,3977.6,3.3838]
[1761682789967,3.2078,3978.9,3977.7,4.677]
[1761682789968,3.21100225,3978.9,3977.7,4.677]
[1761682790169,3.2078,3980.1,3978.4,3.3838]
[1761682790467,3.2078,3980.1,3978.8,3.3838]
[1761682790677,3.2078,3980.1,3978.0,1.3408]
[1761682790678,3.2078,3981.3,3979.8,3.3838]
[1761682790878,1.0046,3981.2,3979.9,4.684]
[1761682791174,1.0046,3981.2,3979.0,0.45239]
[1761682791175,1.0046,3980.7,3978.5,6.5916]
[1761682791367,3.2078,3980.0,3978.6,4.684]
[1761682791568,0.0752,3981.1,3977.4,3.2078]
[1761682791569,1.0046,3978.9,3977.4,3.2078]
[1761682791772,3.2078,3979.0,3975.7,1.13191]
[1761682791773,3.2078,3979.6,3978.1,3.3838]
[1761682791970,3.2078,3979.8,3978.1,3.3838]
[1761682792170,3.2078,3979.8,3978.0,4.5486]
[1761682792171,3.2078,3979.8,3979.0,3.3838]
[1761682792371,0.00202441,3981.2,3979.9,3.3838]
[1761682792372,3.2078,3980.3,3979.9,3.3838]
[1761682792567,1.00662441,3981.2,3980.4,0.45223]
[1761682792568,0.00202441,3981.2,3980.4,0.45223]
[1761682792769,1.30626064,3985.6,3980.4,0.45223]
[1761682792770,3.2078,3982.9,3981.3,3.3838]
[1761682792972,3.2078,3982.9,3981.1,12.43419]
[1761682792973,3.2078,3982.9,3982.6,3.3838]
[1761682793173,3.2078,3984.4,3983.2,3.3838]
[1761682793479,3.2078,3984.4,3982.5,1.3408]
[1761682793480,3.2078,3983.5,3983.3,3.3838]
[1761682793680,3.2078,3983.5,3982.7,4.694]
[1761682793872,3.2078,3982.8,3982.7,4.694]
[1761682794175,0.22196826,3985.2,3982.8,3.3838]
[1761682794176,3.2078,3983.7,3982.8,3.3838]
[1761682794472,3.21070183,3983.7,3983.2,0.45191]
[1761682794673,3.2078,3985.0,3984.2,3.8356]
[1761682794881,3.2078,3985.0,3984.6,3.3838]
[1761682795077,3.2078,3986.5,3985.7,3.3838]
[1761682795275,3.2078,3987.7,3986.4,3.3838]
[1761682795476,3.2078,3987.7,3985.8,4.696]
[1761682795477,0.022,3987.8,3987.6,3.3838]
[1761682795677,3.2078,3988.1,3987.7,8.0]
[1761682795975,3.2078,3988.2,3987.8,4.699]
[1761682796173,3.2078,3988.3,3987.8,3.3838]
[1761682796374,3.2078,3988.3,3987.7,8.0]
[1761682796569,1.0318,3989.0,3987.8,4.701]
[1761682796875,0.00187412,3989.0,3988.6,3.2078]
[1761682797077,0.00187412,3989.0,3988.7,4.701]
[1761682797279,3.2078,3990.6,3988.9,3.83506]
[1761682797598,0.022,3992.8,3990.6,3.3838]
[1761682797784,0.022,3992.8,3991.3,3.3838]
[1761682797785,3.2078,3991.9,3991.3,3.3838]
[1761682798072,3.2078,3991.7,3991.3,4.713]
[1761682798275,3.21102376,3991.7,3991.3,4.71496254]
[1761682798574,3.21102376,3991.7,3989.8,3.2078]
[1761682798575,3.5074,3991.5,3988.8,3.3838]
[1761682798776,1.1526,3991.6,3987.7,8.0]
[1761682798777,3.2078,3988.9,3988.3,3.3838]
[1761682798977,3.2078,3988.9,3987.7,8.0]
[1761682798978,3.2078,3988.5,3987.7,8.0]
[1761682799178,6.7152,3987.9,3987.7,8.0]
[1761682799374,6.7152,3987.9,3986.6,0.21628056]
[1761682799375,3.5074,3987.8,3986.6,0.21628056]
[1761682799571,3.50984289,3987.9,3987.7,0.00273529]
[1761682799878,3.2078,3987.8,3986.9,8.1118]
[1761682800075,3.2078,3989.7,3987.8,3.3838]
[1761682800278,15.086,3992.8,3987.0,6.0688]
[1761682800279,3.2078,3990.2,3988.9,3.3838]
[1761682800472,3.5074,3992.0,3989.3,3.3838]
[1761682800676,0.022,3992.8,3990.0,3.2078]
[1761682800677,3.5074,3991.7,3990.0,3.2078]
[1761682800877,3.2078,3990.5,3989.3,3.3838]
[1761682801069,0.22181302,3992.0,3988.6,3.2078]
[1761682801070,3.5074,3989.6,3988.6,3.2078]
[1761682801380,3.50925093,3989.6,3988.6,0.00268331]
[1761682801568,3.5074,3988.9,3988.6,0.00268331]
[1761682801769,3.5074,3988.9,3988.2,3.2078]
[1761682801977,3.5074,3988.3,3987.1,3.28285793]
[1761682802276,3.2078,3987.7,3987.0,3.2078]
[1761682802477,3.2078,3988.2,3987.0,3.2078]
[1761682802690,3.2078,3988.8,3987.5,6.5916]
[1761682802974,3.2078,3988.8,3986.9,4.736]
[1761682802975,1.68138514,3989.5,3988.1,3.2078]
[1761682803278,3.2078,3989.2,3988.2,4.739]
[1761682803476,3.2078,3989.2,3988.2,11.3306]
[1761682803670,3.20965093,3989.6,3988.3,3.3838]
[1761682803977,0.86862499,3993.2,3988.3,3.3838]
[1761682803978,3.2078,3990.9,3989.4,3.3838]
[1761682804277,1.68138514,3992.7,3991.8,3.3838]
[1761682804479,1.68138514,3992.7,3991.6,4.739]
[1761682804480,3.2078,3992.4,3991.6,4.739]
[1761682804779,1.68138514,3992.7,3991.6,4.739]
[1761682804780,0.022,3992.8,3991.8,3.3838]
[1761682805078,0.02389503,3992.8,3992.0,6.5916]
[1761682805275,0.02389503,3992.8,3992.1,3.3838]
[1761682805779,3.2078,3993.6,3992.7,3.3838]
[1761682805980,3.2078,3993.6,3992.8,4.766]
[1761682806177,3.2078,3993.2,3992.6,4.761]
[1761682806380,3.2078,3993.2,3992.2,4.761]
[1761682806583,3.2078,3993.0,3992.2,4.761]
[1761682806775,0.00206203,3993.0,3992.4,3.3838]
[1761682806979,3.2078,3993.5,3992.7,3.3838]
[1761682807282,3.2078,3992.8,3991.8,3.38702162]
[1761682807481,3.2078,3991.9,3991.8,0.00322162]
[1761682807877,3.2078,3992.3,3991.9,3.3838]
[1761682808183,3.2078,3994.0,3992.3,3.3838]
[1761682808378,3.2078,3993.5,3992.3,3.83468]
[1761682808583,1.68138514,3993.9,3993.3,3.2078]
[1761682808775,4.92598514,3993.8,3993.4,4.76]
[1761682808980,3.2446,3993.4,3992.3,1.52641486]
[1761682809188,3.2078,3993.4,3992.3,4.93831486]
[1761682809582,3.2078,3992.9,3992.0,3.29486812]
[1761682809779,3.2078,3993.0,3992.1,4.758]
[1761682810082,3.2446,3993.6,3992.1,4.758]
[1761682810083,3.2078,3993.5,3992.5,6.3921]
[1761682810383,3.2078,3993.5,3990.2,12.40598]
[1761682810384,3.3796,3992.5,3992.0,3.30000769]
[1761682810577,3.3796,3992.0,3989.9,3.2078]
[1761682810774,3.2078,3990.8,3989.4,3.1843]
[1761682810979,3.2078,3990.3,3989.4,3.1843]
[1761682811172,3.2078,3990.3,3987.0,2.46951]
[1761682811173,3.2078,3989.5,3988.7,3.1843]
[1761682811577,1.3085,3992.4,3988.2,3.2078]
[1761682811578,3.3796,3989.7,3988.2,3.2078]
[1761682811778,3.2078,3988.9,3988.2,3.2078]
[1761682811987,3.3796,3988.4,3987.1,3.2078]
[1761682812181,3.2078,3987.4,3986.7,3.2078]
[1761682812382,3.3796,3986.9,3986.2,3.2078]
[1761682812597,4.757,3988.5,3986.3,3.63586]
[1761682812790,3.3796,3988.0,3986.8,3.2078]
[1761682812991,3.3796,3988.0,3986.8,3.2100487]
[1761682813186,3.2078,3987.7,3986.9,4.758]
[1761682813381,3.3796,3987.6,3987.2,3.2078]
[1761682814285,3.3796,3987.2,3986.8,0.0022487]
[1761682814584,3.3796,3987.2,3986.8,3.2100487]
[1761682814790,3.3796,3988.1,3986.8,3.2100487]
[1761682815179,3.3796,3986.8,3985.6,3.2078]
[1761682815384,4.6881,3985.2,3985.1,3.2078]
[1761682815583,3.3796,3985.1,3984.5,3.2078]
[1761682815984,3.3796,3985.9,3984.9,3.2078]
[1761682816179,0.00229796,3985.9,3985.3,3.2078]
[1761682816486,3.3796,3987.8,3985.8,3.2078]
[1761682816682,3.3796,3987.5,3986.2,3.2078]
[1761682816892,3.3796,3987.5,3985.4,3.3048703]
[1761682816893,3.3796,3987.5,3987.0,3.2078]
[1761682817084,3.3796,3987.5,3986.8,3.2078]
[1761682817479,0.22251289,3990.0,3986.0,3.2078]
[1761682817480,3.3796,3986.9,3986.0,3.2078]
[1761682817684,3.38269397,3986.9,3986.0,3.2078]
[1761682818185,3.38269397,3986.9,3986.4,3.2078]
[1761682819286,3.38269397,3986.9,3986.8,3.2078]
[1761682819489,0.00309397,3986.9,3986.8,3.2078]
[1761682819883,6.5874,3989.2,3986.9,1.12874]
[1761682820100,3.3796,3989.2,3988.7,3.2078]
[1761682820481,3.2078,3989.6,3988.8,0.0752]
[1761682820686,3.3796,3990.1,3989.5,3.2078]
[1761682820883,3.3796,3990.3,3988.8,3.19608978]
[1761682821183,3.38212083,3989.6,3988.8,3.20999345]
[1761682821389,0.00252083,3989.6,3989.2,3.2078]
[1761682821687,1.3085,3990.6,3989.5,0.4819]
[1761682821997,4.6881,3990.6,3990.0,3.2078]
[1761682822187,3.3796,3990.5,3990.0,3.2078]
[1761682822486,1.3085,3990.6,3989.4,3.2078]
[1761682822691,1.31107289,3990.6,3989.8,3.2078]
[1761682822891,0.00257289,3990.6,3990.2,3.2078]
[1761682823786,0.00257289,3990.6,3990.3,0.5554]
[1761682824195,3.38217289,3990.6,3990.2,3.2078]
[1761682825189,0.00257289,3990.6,3990.2,3.2078]
[1761682825495,3.2078,3990.5,3989.4,3.2078]
[1761682825690,3.2078,3990.5,3988.8,0.00219345]
[1761682825691,3.3796,3989.4,3988.8,0.00219345]
[1761682825886,3.3796,3989.0,3988.8,0.00219345]
[1761682826185,3.3796,3989.0,3987.5,3.2078]
[1761682826385,3.3796,3989.4,3988.5,3.2078]
[1761682826586,3.3796,3989.1,3988.1,3.2078]
[1761682826796,3.3796,3989.1,3987.2,0.5554]
[1761682826797,3.3796,3989.1,3989.0,3.2078]
[1761682826996,6.5874,3989.1,3988.1,3.2103441]
[1761682827294,3.3796,3989.0,3988.1,3.2103441]
[1761682828394,1.3085,3989.9,3988.1,3.2103441]
[1761682828395,4.6881,3988.2,3988.1,0.0025441]
[1761682828587,3.3796,3988.1,3987.6,3.2078]
[1761682828791,3.3796,3988.1,3987.2,4.703]
[1761682829295,3.3796,3988.1,3987.4,3.2078]
[1761682829494,3.3796,3987.7,3987.4,0.00218371]
[1761682829692,3.38144332,3987.7,3987.4,3.20998371]
[1761682830187,0.00184332,3987.7,3987.4,0.00218371]
[1761682830594,3.38144332,3987.7,3987.4,0.00218371]
[1761682830799,0.00184332,3987.7,3987.4,0.00218371]
[1761682831187,0.00184332,3987.7,3987.5,0.52663]
[1761682831392,0.00184332,3987.7,3987.6,0.5579]
[1761682831698,0.00184332,3987.7,3987.5,0.5579]
[1761682831889,0.00184332,3987.7,3987.4,0.00218371]
[1761682832089,3.2078,3989.0,3987.6,3.24213909]
[1761682832291,3.3796,3988.7,3988.3,3.2078]
[1761682832490,3.3796,3988.7,3988.1,4.69]
[1761682833097,3.38257252,3988.7,3988.3,3.2078]
[1761682834191,3.2078,3989.5,3988.5,0.5579]
[1761682834391,3.2078,3989.5,3988.9,3.2078]
[1761682834587,3.2078,3989.5,3985.5,13.54968]
[1761682834588,3.3796,3989.4,3988.5,3.2078]
[1761682834787,3.2078,3989.0,3988.4,4.683]
[1761682834996,3.3796,3988.9,3988.4,4.683]
[1761682835194,3.3828114,3988.9,3988.4,4.683]
[1761682835389,3.3796,3988.4,3987.9,3.2078]
[1761682835591,3.3796,3988.1,3986.6,3.2078]
[1761682835793,3.3796,3987.6,3986.6,3.2078]
[1761682835996,3.3796,3987.6,3987.0,3.2078]
[1761682836205,3.3796,3987.6,3986.6,3.2078]
[1761682836497,3.3796,3986.9,3985.8,3.2078]
[1761682836703,1.3085,3987.0,3984.8,0.5579]
[1761682836704,3.3796,3986.6,3986.2,3.2078]
[1761682837099,3.3796,3986.6,3985.8,3.2078]
[1761682837300,3.3796,3986.6,3986.2,3.2078]
[1761682837700,3.3796,3986.6,3985.7,4.674]
[1761682837701,3.3796,3986.6,3985.8,3.21095524]
[1761682837897,3.3796,3986.2,3985.8,0.00315524]
[1761682838099,3.3796,3985.4,3984.3,3.2078]
[1761682838297,1.3085,3985.5,3984.1,3.2078]
[1761682838298,3.3796,3985.2,3984.1,3.2078]
[1761682838506,4.676,3985.3,3983.8,0.02509989]
[1761682838507,3.3796,3985.0,3983.8,0.02509989]
[1761682838699,3.3796,3984.6,3983.8,3.23289989]
[1761682838900,3.3796,3983.9,3983.8,3.23289989]
[1761682839107,3.3796,3983.9,3983.4,3.2078]
[1761682839308,1.3085,3984.0,3982.5,3.302]
[1761682839309,3.3796,3983.4,3982.5,3.302]
[1761682839800,4.678,3983.7,3982.1,3.2078]
[1761682839801,3.4207,3983.0,3982.1,3.2078]
[1761682840005,3.4207,3983.0,3982.8,0.02774394]
[1761682840804,3.2078,3983.9,3982.9,3.2078]
[1761682841004,3.4207,3983.8,3982.9,3.2078]
[1761682841407,3.4207,3983.4,3982.8,0.02774394]
[1761682841602,3.2078,3983.1,3981.9,3.2078]
[1761682841902,3.4207,3982.0,3981.1,3.2078]
[1761682842203,3.4207,3982.0,3981.5,3.2078]
[1761682843010,3.4207,3982.0,3981.5,3.20969992]
[1761682843920,1.3606,3982.5,3981.9,3.2078]
[1761682844122,3.4207,3982.4,3981.9,4.663]
[1761682844321,3.4207,3982.4,3981.9,7.8708]
[1761682844516,3.4207,3982.4,3981.9,4.663]
[1761682844725,1.3606,3982.5,3981.9,7.8708]
[1761682844924,3.4207,3982.4,3981.9,4.663]
[1761682845124,3.4207,3982.4,3981.9,3.2078]
[1761682845321,3.4207,3983.8,3982.3,3.2078]
[1761682845528,3.4207,3983.8,3983.5,3.2078]
[1761682845822,4.7292,3985.5,3983.6,0.6209]
[1761682846122,3.4207,3985.4,3984.5,3.2078]
[1761682846315,3.4207,3985.4,3984.6,4.662]
[1761682846514,3.4207,3985.4,3984.9,3.2078]
[1761682846922,3.4207,3986.1,3985.3,3.2078]
[1761682847116,3.4207,3985.4,3985.3,0.00262809]
[1761682847316,3.4207,3985.3,3983.5,3.2078]
[1761682847624,3.4207,3985.3,3982.0,0.6235]
[1761682847625,3.4207,3983.7,3982.0,3.2078]
[1761682847922,3.4207,3982.9,3982.4,3.2078]
[1761682848323,3.4207,3982.9,3982.4,0.00199628]
[1761682848324,4.7813,3982.5,3982.4,0.00199628]
[1761682848623,3.4207,3982.4,3981.2,3.2078]
[1761682848817,3.4207,3982.0,3981.6,3.2078]
[1761682849322,3.4207,3982.0,3981.2,4.392]
[1761682849323,3.4207,3982.0,3981.2,7.5998]
[1761682849517,3.4207,3982.0,3981.2,7.8608]
[1761682849717,3.4207,3982.0,3981.6,3.2078]
[1761682850125,1.3606,3982.5,3981.6,3.2078]
[1761682850322,3.4207,3982.4,3982.0,3.2078]
[1761682850525,3.4207,3982.4,3981.2,0.0027494]
[1761682850723,4.5684,3982.5,3981.2,0.0027494]
[1761682850724,3.4207,3982.0,3981.2,0.0027494]
[1761682850923,3.4207,3981.4,3981.2,0.0027494]
[1761682851227,3.4207,3980.9,3979.4,3.2078]
[1761682851426,3.4207,3980.9,3978.9,15.062]
[1761682851427,3.4207,3980.2,3979.0,7.8568]
[1761682851630,3.4207,3979.8,3979.0,3.2078]
[1761682851820,3.4207,3979.8,3976.5,1.75989]
[1761682851821,3.4207,3979.4,3978.6,3.2078]
[1761682852022,3.4225689,3979.4,3979.0,3.2078]
[1761682852226,3.4225689,3979.4,3978.6,3.20986127]
[1761682852417,3.4225689,3979.4,3979.0,3.2078]
[1761682852630,3.4225689,3979.4,3978.6,3.20986127]
[1761682852927,3.4225689,3979.4,3979.1,3.2078]
[1761682853323,6.6285,3979.2,3978.6,0.00206127]
[1761682853528,3.4207,3977.9,3977.0,3.2078]
[1761682853720,3.4207,3977.9,3976.3,3.4045]
[1761682853919,3.2078,3977.9,3976.7,3.4045]
[1761682854117,1.74204251,3981.7,3976.2,4.652]
[1761682854118,3.2078,3979.0,3977.8,3.4045]
[1761682854524,3.2078,3978.4,3977.8,0.00297757]
[1761682854728,3.4207,3978.3,3977.8,0.00297757]
[1761682854930,3.2078,3978.8,3977.9,3.2078]
[1761682855122,3.2078,3978.8,3978.6,0.45243]
[1761682855327,0.0018689,3979.4,3978.7,4.65]
[1761682855631,0.0018689,3979.4,3977.9,3.2343088]
[1761682855632,0.0018689,3979.4,3978.2,3.2078]
[1761682855931,3.4207,3979.1,3977.9,3.2078]
[1761682856126,3.2078,3978.3,3977.2,3.4045]
[1761682856334,3.4207,3978.2,3977.4,4.653]
[1761682856525,3.4207,3978.2,3977.5,3.2078]
[1761682856824,0.0018689,3979.4,3978.4,3.4045]
[1761682857032,4.651,3981.1,3979.3,6.6123]
[1761682857033,6.6285,3980.8,3979.3,6.6123]
[1761682857219,6.6285,3980.4,3978.9,3.2078]
[1761682857419,3.4207,3979.9,3978.9,3.2078]
[1761682857622,3.4207,3979.6,3978.6,3.2078]
[1761682857818,3.2078,3979.5,3978.3,6.6875]
[1761682858022,3.4207,3979.0,3978.3,3.21062546]
[1761682858224,1.36374257,3979.5,3978.7,3.2078]
[1761682858428,1.36374257,3979.5,3978.4,4.653]
[1761682858621,4.7813,3981.0,3979.2,3.4045]
[1761682858825,3.4207,3980.3,3979.0,3.2078]
[1761682859533,3.4207,3980.3,3979.1,4.655]
[1761682859725,3.42337527,3980.3,3979.4,3.2078]
[1761682859921,0.00267527,3980.3,3980.1,3.4045]
[1761682860122,0.00267527,3980.3,3980.2,4.653]
[1761682860435,3.2078,3982.3,3980.9,3.85667]
[1761682860624,3.2078,3982.3,3981.4,6.6123]
[1761682860824,0.21836775,3984.1,3981.4,4.655]
[1761682860825,3.4207,3982.4,3981.4,4.655]
[1761682861029,4.5684,3982.5,3980.4,3.2078]
[1761682861030,3.4207,3982.0,3980.4,3.2078]
[1761682861224,6.6285,3981.3,3980.4,3.20976372]
[1761682861536,3.4207,3980.6,3980.4,0.00196372]
[1761682861727,3.2078,3980.7,3977.8,3.2078]
[1761682861728,3.4207,3980.4,3977.8,3.2078]
[1761682861921,3.4207,3977.8,3975.4,3.4045]
[1761682862122,3.2078,3977.1,3975.4,6.6123]
[1761682862329,3.2078,3977.1,3975.9,3.4045]
[1761682862530,3.2078,3976.7,3976.0,3.4045]
[1761682862725,3.2078,3976.2,3975.8,3.4045]
[1761682862930,3.2078,3976.6,3975.9,3.4045]
[1761682863125,3.2078,3976.6,3975.8,4.695]
[1761682863126,0.00262941,3976.2,3976.0,3.4045]
[1761682863328,3.2078,3978.0,3976.1,3.4045]
[1761682863524,3.2078,3978.6,3977.5,3.4045]
[1761682863727,3.2078,3977.8,3977.0,3.4045]
[1761682863927,3.2078,3977.4,3976.5,4.695]
[1761682864127,3.2078,3977.9,3976.6,3.4045]
[1761682864433,3.2078,3977.9,3976.8,3.4045]
[1761682864434,3.2078,3976.9,3976.8,3.4045]
[1761682864627,3.2078,3976.9,3976.2,0.0752]
[1761682864835,3.2078,3977.2,3976.1,3.4797]
[1761682865129,0.0025831,3977.9,3975.8,0.0030189]
[1761682865130,3.2078,3976.4,3975.8,0.0030189]
[1761682865631,0.0025831,3977.9,3975.8,0.0030189]
[1761682865632,3.2103831,3977.9,3976.4,3.4045]
[1761682865832,3.2078,3978.7,3977.9,3.4045]
[1761682866037,1.74204251,3982.4,3977.9,3.4045]
[1761682866038,3.2078,3979.5,3978.1,3.4045]
[1761682866235,3.4207,3980.6,3978.0,4.703]
[1761682866236,3.2078,3979.6,3979.0,3.4045]
[1761682866430,3.2078,3979.6,3978.0,4.7782]
[1761682866431,3.4207,3979.1,3978.2,3.25305949]
[1761682866632,6.6285,3978.3,3978.2,3.25305949]
[1761682866933,0.00215394,3978.3,3978.2,0.00295062]
[1761682867130,3.2078,3979.6,3978.3,3.4045]
[1761682867331,3.2078,3979.6,3978.2,4.78915062]
[1761682867332,3.2078,3980.0,3978.7,3.4045]
[1761682867527,1.30626064,3982.3,3978.4,3.283]
[1761682867528,3.2078,3980.2,3978.9,3.4045]
[1761682867734,3.2078,3979.6,3979.1,3.4045]
[1761682868027,3.2078,3979.2,3979.0,4.71]
[1761682868228,0.00234152,3979.6,3979.1,3.4381]
[1761682868431,0.00234152,3979.6,3979.3,3.4381]
[1761682868633,3.2078,3980.2,3979.5,3.4381]
[1761682868833,3.2078,3979.8,3979.6,4.709]
[1761682869031,3.2078,3979.8,3978.8,3.4381]
[1761682869230,3.3587,3980.2,3979.0,3.4381]
[1761682869231,3.2078,3979.3,3979.0,3.4381]
[1761682869632,3.2078,3979.7,3979.0,3.4381]
[1761682869833,0.00280195,3979.7,3979.0,3.4381]
[1761682870330,0.00280195,3979.7,3978.9,4.709]
[1761682870331,3.2078,3980.6,3979.6,3.2078]
[1761682870528,3.2078,3980.5,3979.8,3.5263]
[1761682870733,3.2078,3980.5,3979.9,4.704]
[1761682870933,3.2078,3980.0,3978.8,3.2078]
[1761682871134,3.2078,3980.0,3976.2,13.09318182]
[1761682871135,3.2078,3979.2,3978.9,8.2303]
[1761682871339,3.2078,3979.2,3978.3,9.98808877]
[1761682871340,3.20968039,3979.2,3978.3,9.98808877]
[1761682871634,3.2078,3978.9,3978.5,3.5263]
[1761682871831,3.2078,3979.7,3978.8,3.5263]
[1761682872032,3.2078,3980.6,3979.6,3.5263]
[1761682872233,3.2078,3980.2,3979.6,3.5263]
[1761682872431,6.6693,3979.8,3978.6,3.2078]
[1761682872636,6.6693,3979.8,3978.5,3.5263]
[1761682872637,3.2078,3979.2,3978.7,2.471]
[1761682872832,3.2078,3978.8,3978.1,4.704]
[1761682873035,3.4615,3978.2,3977.0,3.5263]
[1761682873235,3.2078,3977.8,3977.1,4.704]
[1761682873428,3.2078,3977.3,3977.2,4.701]
[1761682873628,3.2078,3977.3,3976.2,3.5263]
[1761682873838,3.2078,3976.4,3976.1,4.704]
[1761682874030,3.2078,3976.9,3976.1,4.704]
[1761682874233,3.4615,3976.4,3976.2,0.00274735]
[1761682874439,0.00232561,3976.4,3976.2,0.00274735]
[1761682874740,0.00232561,3976.4,3976.2,3.52904735]
[1761682874930,0.00232561,3976.4,3976.2,11.52904735]
[1761682875241,3.4615,3978.4,3976.9,3.5263]
[1761682875440,3.2078,3979.3,3978.0,3.97879]
[1761682875742,3.2078,3978.9,3978.2,3.5263]
[1761682875936,3.2078,3979.7,3978.9,3.5263]
[1761682876133,1.3279,3981.0,3978.0,1.3909]
[1761682876134,3.2078,3980.6,3979.7,3.5263]
[1761682876336,0.00238476,3980.6,3980.3,3.5263]
[1761682876639,3.2078,3981.2,3980.2,3.2078]
[1761682876836,3.2078,3980.8,3979.9,3.5263]
[1761682877041,3.2078,3980.7,3980.0,4.707]